bitfinex-derivatives/quotes_SOLF0:USTF0_20250318
["timestamp","ask_amount","ask_price","bid_price","bid_amount"]
[1742286995487,7.9491,125.81,125.8,0.05909009]
[1742286995882,0.05081812,125.83,125.8,0.05909009]
[1742286996083,0.05081812,125.83,125.81,42.76669112]
[1742286996289,0.05081812,125.83,125.82,13.10669112]
[1742286996690,0.05081812,125.83,125.82,21.05509112]
[1742287001187,7.945,125.88,125.85,13.10669112]
[1742287001382,7.945,125.88,125.85,42.80669112]
[1742287001888,7.9455,125.87,125.85,42.80669112]
[1742287002092,15.29039112,125.89,125.85,29.7]
[1742287002293,15.29039112,125.89,125.85,29.75138175]
[1742287002693,7.9456,125.87,125.85,29.75138175]
[1742287002888,7.9456,125.87,125.85,37.69788175]
[1742287003795,7.945,125.88,125.85,37.69788175]
[1742287004293,7.9454,125.87,125.85,37.69788175]
[1742287004788,15.29039112,125.89,125.85,29.75138175]
[1742287004789,7.9459,125.86,125.85,29.75138175]
[1742287004991,13.10669112,125.87,125.84,262.3]
[1742287005187,2.0281,125.86,125.84,262.3]
[1742287005492,7.9466,125.85,125.84,262.3]
[1742287005882,7.9466,125.85,125.84,252.3589]
[1742287006083,21.05329112,125.85,125.84,242.4181]
[1742287006287,21.05329112,125.85,125.84,232.4779]
[1742287006490,7.9472,125.84,125.83,0.05555395]
[1742287006789,0.05138175,125.86,125.83,0.05555395]
[1742287007096,7.99768175,125.86,125.83,21.10974507]
[1742287007290,0.05138175,125.86,125.83,13.16224507]
[1742287007495,0.05138175,125.86,125.83,0.05555395]
[1742287007687,13.15807287,125.86,125.83,0.05555395]
[1742287008195,13.10669112,125.85,125.83,0.05555395]
[1742287008395,7.9472,125.84,125.83,0.05555395]
[1742287009396,50.69389112,125.84,125.83,0.05555395]
[1742287009590,58.63389112,125.84,125.83,5.395e-05]
[1742287009792,7.9497,125.8,125.79,262.26]
[1742287010098,13.10669112,125.8,125.75,93.85852563]
[1742287010396,7.9513,125.78,125.75,106.96521675]
[1742287010895,0.05146946,125.78,125.76,7.9521]
[1742287011894,8.00246946,125.78,125.75,107.01966919]
[1742287012497,7.9517,125.77,125.75,99.06716919]
[1742287012795,0.05146946,125.78,125.75,99.06716919]
[1742287012988,8.00276946,125.78,125.76,7.9522]
[1742287013497,8.00276946,125.78,125.75,99.06716919]
[1742287013699,0.05146946,125.78,125.75,99.06716919]
[1742287014801,0.05146946,125.78,125.76,7.952]
[1742287015199,0.05146946,125.78,125.75,85.96047807]
[1742287015395,7.9518,125.77,125.75,85.96047807]
[1742287015799,0.05146946,125.78,125.75,85.96047807]
[1742287016496,0.05146946,125.78,125.76,7.9519]
[1742287017200,0.05146946,125.78,125.77,7.9516]
[1742287017405,0.05146946,125.78,125.76,13.10669112]
[1742287017694,0.05146946,125.78,125.76,21.05829112]
[1742287018198,0.05146946,125.78,125.76,13.10669112]
[1742287018407,0.05146946,125.78,125.77,21.05829112]
[1742287018700,121.22016681,125.83,125.77,42.70669112]
[1742287018907,129.16836681,125.83,125.79,13.10669112]
[1742287019494,129.16836681,125.83,125.8,7.9494]
[1742287019802,0.0512583,125.82,125.8,8.00387278]
[1742287020299,0.0512583,125.82,125.81,7.9491]
[1742287021098,0.0512583,125.82,125.81,21.05579112]
[1742287022600,0.0512583,125.82,125.81,13.10669112]
[1742287022801,0.0512583,125.82,125.8,305.0811639]
[1742287023202,0.0512583,125.82,125.8,313.0305639]
[1742287023710,0.0512583,125.82,125.8,262.41447278]
[1742287024100,13.15794942,125.82,125.8,0.05447278]
[1742287024306,13.10669112,125.81,125.8,0.05447278]
[1742287024606,13.15794942,125.82,125.8,0.05447278]
[1742287025003,7.9491,125.81,125.8,0.05447278]
[1742287025398,21.05579112,125.81,125.8,0.05447278]
[1742287026009,7.9512,125.78,125.75,377.78602563]
[1742287026303,7.9512,125.78,125.75,356.21852563]
[1742287026509,29.52,125.8,125.76,13.10669112]
[1742287026809,29.52,125.8,125.76,21.05859112]
[1742287027005,7.9504,125.79,125.76,21.05859112]
[1742287027207,8.00146031,125.79,125.77,0.06041315]
[1742287028112,7.951,125.78,125.77,0.06041315]
[1742287030813,8.00176031,125.79,125.77,0.06041315]
[1742287031011,13.15775143,125.79,125.77,0.06041315]
[1742287031410,0.05106031,125.79,125.77,0.06041315]
[1742287031610,7.951,125.78,125.77,0.06041315]
[1742287033111,0.05106031,125.79,125.77,0.06041315]
[1742287033512,7.951,125.78,125.77,0.06041315]
[1742287035114,13.18405463,125.78,125.77,0.06041315]
[1742287040013,26.29074575,125.78,125.77,0.06041315]
[1742287040716,55.67074575,125.78,125.77,0.00700296]
[1742287042420,61.30102492,125.78,125.77,0.00700296]
[1742287042617,7.9536,125.74,125.72,12.0665]
[1742287042812,5.63027917,125.73,125.72,12.0665]
[1742287043418,10.8633338,125.73,125.72,12.0665]
[1742287044422,7.9548,125.72,125.71,0.05414978]
[1742287044718,31.92482492,125.72,125.71,0.00078517]
[1742287045117,7.9573,125.68,125.67,1.46063952]
[1742287045323,56.05427029,125.68,125.67,1.46063952]
[1742287045522,53.33002492,125.68,125.67,1.46063952]
[1742287045824,7.9586,125.66,125.65,1.46070361]
[1742287046011,13.58887917,125.66,125.65,1.46070514]
[1742287046212,18.73697029,125.66,125.65,1.46070514]
[1742287046417,31.92862492,125.66,125.65,1.46070514]
[1742287046725,18.8219338,125.66,125.65,1.46070514]
[1742287047423,10.8633338,125.66,125.65,1.46070514]
[1742287047815,10.8633338,125.66,125.64,0.05139292]
[1742287047816,10.8633338,125.66,125.64,14.61878918]
[1742287048016,10.8633338,125.66,125.65,1.46070514]
[1742287048017,5.23305463,125.66,125.65,1.46070514]
[1742287048223,10.85558536,125.66,125.65,1.46070514]
[1742287048730,18.81468536,125.66,125.65,1.46070514]
[1742287048917,18.81468536,125.66,125.64,1.51209806]
[1742287049119,13.58173073,125.65,125.64,0.05139292]
[1742287050027,13.19225463,125.65,125.64,0.05139292]
[1742287050228,18.80915317,125.65,125.64,0.05139292]
[1742287052416,28.2841361,125.65,125.64,0.05139292]
[1742287052622,35.12166608,125.65,125.64,0.05139292]
[1742287054221,35.11768453,125.65,125.64,0.05139292]
[1742287054420,43.95173394,125.65,125.64,0.05139292]
[1742287054620,43.95173394,125.65,125.64,0.00322146]
[1742287054923,37.11818551,125.65,125.64,0.00322146]
[1742287055227,29.15898551,125.65,125.64,0.00322146]
[1742287055825,0.05911467,125.67,125.64,0.00322146]
[1742287056024,0.05911467,125.67,125.64,1.46395118]
[1742287056325,0.05911467,125.67,125.66,7.9586]
[1742287056528,0.05911467,125.67,125.66,38.83932972]
[1742287057328,0.05911467,125.67,125.66,37.3786]
[1742287058222,0.05911467,125.67,125.66,29.42]
[1742287059027,0.05911467,125.67,125.65,7.9589]
[1742287059428,8.01711467,125.67,125.64,37.36272146]
[1742287059628,8.01711467,125.67,125.64,29.40322146]
[1742287059920,0.05911467,125.67,125.64,0.00322146]
[1742287060523,7.9588,125.66,125.64,0.00322146]
[1742287061330,8.01741467,125.67,125.64,0.00322146]
[1742287061527,0.05911467,125.67,125.64,0.00322146]
[1742287061731,29.4,125.66,125.64,0.00322146]
[1742287062928,7.9592,125.65,125.64,0.00322146]
[1742287067733,13.67875927,125.65,125.64,0.00322146]
[1742287068039,19.01411905,125.65,125.64,0.00322146]
[1742287070042,19.01841188,125.65,125.64,0.00322146]
[1742287071542,38.98703656,125.65,125.64,0.00322146]
[1742287071744,7.9611,125.62,125.61,262.42]
[1742287071936,26.82495794,125.62,125.61,262.42]
[1742287072631,32.1602283,125.62,125.61,262.42]
[1742287073036,32.16141451,125.62,125.61,262.42]
[1742287073640,11.06039809,125.62,125.61,262.42]
[1742287075139,11.06039809,125.62,125.61,270.3817]
[1742287076043,11.06213734,125.62,125.61,270.3817]
[1742287076344,11.06213734,125.62,125.61,262.42]
[1742287077146,19.02323734,125.62,125.61,262.42]
[1742287077440,32.16315376,125.62,125.6,0.05519858]
[1742287077647,19.02383734,125.61,125.6,0.05519858]
[1742287081849,25.87350969,125.61,125.6,0.05519858]
[1742287083952,25.89498515,125.61,125.6,0.05519858]
[1742287085950,25.91572661,125.61,125.6,0.05519858]
[1742287086954,25.91907779,125.61,125.6,0.05519858]
[1742287087149,39.05899421,125.61,125.6,0.05519858]
[1742287087649,7.9642,125.58,125.56,262.7]
[1742287087947,20.59525435,125.57,125.56,262.7]
[1742287088353,25.93052471,125.57,125.56,262.7]
[1742287088754,17.96622471,125.57,125.56,262.7]
[1742287089852,25.93052471,125.57,125.56,262.7]
[1742287090254,17.97960367,125.57,125.56,262.7]
[1742287091254,17.97960367,125.57,125.56,283.80481642]
[1742287091461,11.10650698,125.57,125.56,312.86481642]
[1742287091847,5.33527036,125.57,125.56,312.86481642]
[1742287092052,11.10373416,125.57,125.56,312.86481642]
[1742287092548,11.10338284,125.57,125.56,312.86481642]
[1742287093152,11.10338284,125.57,125.55,0.05074398]
[1742287093153,53.30329926,125.57,125.55,0.05074398]
[1742287093355,6.56995821,125.55,125.5,13.13991642]
[1742287093651,5.76811248,125.54,125.5,13.13991642]
[1742287093951,5.76744093,125.53,125.5,13.13991642]
[1742287094253,5.76744093,125.52,125.5,13.13991642]
[1742287094554,5.76744093,125.51,125.5,13.20072538]
[1742287094749,11.10271129,125.51,125.5,13.20072538]
[1742287095051,11.10271129,125.51,125.5,0.06080896]
[1742287098259,19.07081129,125.51,125.5,0.06080896]
[1742287104859,55.04794071,125.51,125.5,0.06080896]
[1742287105865,7.9691,125.5,125.44,29.1]
[1742287106058,5.76744093,125.49,125.44,29.1]
[1742287106260,5.76744093,125.48,125.43,270.8728]
[1742287106462,5.76744093,125.47,125.43,299.9728]
[1742287106658,7.9694,125.49,125.43,299.9728]
[1742287106955,5.38732463,125.47,125.45,0.06106615]
[1742287107265,5.74515125,125.46,125.45,0.06106615]
[1742287107565,11.08042161,125.46,125.45,0.06106615]
[1742287108267,11.07803441,125.46,125.45,0.06106615]
[1742287108566,11.07803441,125.46,125.45,8.03296615]
[1742287109766,5.33527036,125.46,125.45,8.03296615]
[1742287109969,11.07363648,125.46,125.45,8.03296615]
[1742287110465,5.33527036,125.46,125.45,8.03296615]
[1742287111272,0.05205427,125.47,125.46,7.9713]
[1742287115269,0.05205427,125.47,125.46,21.14038284]
[1742287115472,0.05205427,125.47,125.46,25.27078284]
[1742287116371,5.427e-05,125.47,125.46,25.27078284]
[1742287122580,5.427e-05,125.47,125.46,27.33698284]
[1742287123079,6.85744174,125.52,125.51,7.9681]
[1742287123281,12.60676333,125.52,125.51,7.9681]
[1742287123875,17.97118398,125.52,125.51,7.9681]
[1742287127284,5.36442065,125.52,125.51,7.9681]
[1742287127483,11.12367533,125.52,125.51,7.9681]
[1742287128086,17.99471842,125.52,125.51,7.9681]
[1742287128686,11.12367533,125.52,125.51,7.9681]
[1742287128886,5.36442065,125.52,125.51,7.9681]
[1742287129087,17.99779196,125.52,125.51,7.9681]
[1742287129381,5.36442065,125.52,125.51,7.9681]
[1742287129885,12.23907146,125.52,125.51,7.9681]
[1742287130084,18.00135246,125.52,125.51,7.9681]
[1742287130987,11.12670012,125.52,125.51,50.05718284]
[1742287131189,14.99917038,125.58,125.51,42.08908284]
[1742287131486,14.99917038,125.58,125.55,13.16908284]
[1742287131487,6.87467013,125.57,125.55,13.16908284]
[1742287131690,6.87467013,125.56,125.55,13.16908284]
[1742287131890,6.87467013,125.56,125.55,21.13458284]
[1742287132589,0.0504657,125.57,125.56,7.9649]
[1742287132791,88.43677501,125.57,125.56,7.9649]
[1742287132983,88.43677501,125.57,125.54,28.9601769]
[1742287132984,88.43677501,125.57,125.54,42.12925974]
[1742287134090,88.43677501,125.57,125.55,13.16908284]
[1742287134492,88.43677501,125.57,125.56,7.9649]
[1742287135793,0.0504657,125.57,125.56,7.9649]
[1742287136994,0.0504657,125.57,125.56,21.13398284]
[1742287143093,5.72070251,125.57,125.56,21.13398284]
[1742287144201,10.92611926,125.57,125.56,21.13398284]
[1742287146000,48.30828284,125.64,125.6,7.962]
[1742287146199,7.9609,125.63,125.59,13.16908284]
[1742287146597,6.2592,125.64,125.6,13.16908284]
[1742287146802,7.9605,125.63,125.61,13.16908284]
[1742287147195,8.01480171,125.63,125.61,13.22292043]
[1742287147405,8.01480171,125.63,125.61,21.18422043]
[1742287147795,0.05430171,125.63,125.61,21.18422043]
[1742287148099,0.05430171,125.63,125.61,13.22292043]
[1742287148497,0.05430171,125.63,125.61,0.05383759]
[1742287148902,7.9611,125.62,125.61,0.05383759]
[1742287149797,21.13018284,125.62,125.61,0.05383759]
[1742287150003,7.9624,125.6,125.59,262.84]
[1742287158008,13.55184152,125.6,125.59,262.84]
[1742287158812,26.72092436,125.6,125.59,262.84]
[1742287160312,21.13148284,125.6,125.59,262.84]
[1742287160616,7.963,125.59,125.58,0.05310971]
[1742287160912,13.55608272,125.59,125.58,0.05310971]
[1742287162310,7.963,125.59,125.58,0.05310971]
[1742287162505,13.55915502,125.59,125.58,0.05310971]
[1742287163410,5.59615502,125.59,125.58,13.22219255]
[1742287163906,5.59615502,125.59,125.58,21.18579255]
[1742287164516,0.05842971,125.6,125.59,7.963]
[1742287164710,5.6574776,125.6,125.58,0.05310971]
[1742287165013,5.59904789,125.59,125.58,0.05310971]
[1742287165414,13.56204789,125.59,125.58,0.05310971]
[1742287165814,5.59904789,125.59,125.58,0.05310971]
[1742287166413,5.60349465,125.59,125.58,0.05310971]
[1742287166614,5.60349465,125.59,125.58,42.12219255]
[1742287167105,5.60349465,125.59,125.58,50.08579255]
[1742287167708,5.60349465,125.59,125.58,28.95310971]
[1742287167905,5.60349465,125.59,125.58,0.05310971]
[1742287169415,5.60349465,125.59,125.58,8.01670971]
[1742287172018,5.60349465,125.59,125.58,0.05310971]
[1742287172618,13.56649465,125.59,125.58,0.05310971]
[1742287173017,5.60349465,125.59,125.58,8.01670971]
[1742287174323,5.60349465,125.59,125.58,0.05310971]
[1742287174513,5.62492554,125.59,125.58,0.05310971]
[1742287175018,5.62492554,125.59,125.58,8.01630971]
[1742287175720,13.58792554,125.59,125.58,0.05310971]
[1742287178824,13.59267906,125.59,125.58,0.05310971]
[1742287181522,26.7617619,125.59,125.58,0.05310971]
[1742287181719,26.7617619,125.59,125.54,262.78]
[1742287181720,7.9655,125.55,125.54,262.78]
[1742287181923,13.59517906,125.55,125.54,262.78]
[1742287182818,26.7642619,125.55,125.54,262.78]
[1742287185129,13.59517906,125.55,125.54,262.78]
[1742287188625,13.58299329,125.55,125.54,262.78]
[1742287190133,13.5814115,125.55,125.54,262.78]
[1742287190426,13.5811571,125.55,125.54,262.78]
[1742287192533,7.9662,125.54,125.53,0.05099093]
[1742287192830,13.5818571,125.54,125.53,0.05099093]
[1742287194639,42.3418571,125.54,125.53,0.05099093]
[1742287194842,5.6156571,125.54,125.53,13.22007377]
[1742287195433,5.6156571,125.54,125.53,0.05099093]
[1742287196439,13.5818571,125.54,125.53,0.05099093]
[1742287197041,13.57937549,125.54,125.53,0.05099093]
[1742287197443,5.61317549,125.54,125.53,0.05099093]
[1742287198536,13.57937549,125.54,125.53,0.05099093]
[1742287198839,7.9662,125.54,125.53,0.05099093]
[1742287199044,13.57837037,125.54,125.53,0.05099093]
[1742287199343,5.61217037,125.54,125.53,0.05099093]
[1742287200041,5.61217037,125.54,125.53,8.01779093]
[1742287203945,5.61217037,125.54,125.53,21.18687377]
[1742287205046,5.61217037,125.54,125.53,8.01779093]
[1742287206543,5.61217037,125.54,125.53,0.05099093]
[1742287207548,26.747515,125.54,125.53,0.05099093]
[1742287208746,7.9681,125.51,125.49,270.849]
[1742287208948,5.61144906,125.5,125.49,262.88]
[1742287209145,13.58014906,125.5,125.49,262.88]
[1742287210851,13.57872682,125.5,125.49,262.88]
[1742287211152,7.9693,125.49,125.48,0.05278475]
[1742287211449,13.57932682,125.49,125.48,0.05278475]
[1742287213352,5.61002682,125.49,125.48,0.05278475]
[1742287214450,5.61002682,125.49,125.48,8.02278475]
[1742287216953,5.60842631,125.49,125.48,0.05278475]
[1742287217454,7.969,125.5,125.48,0.05278475]
[1742287217654,5.6091052,125.49,125.48,0.05278475]
[1742287218456,13.5784052,125.49,125.48,0.05278475]
[1742287222959,42.2584052,125.49,125.48,0.05278475]
[1742287224859,36.6493,125.49,125.48,0.05278475]
[1742287225065,42.26333008,125.49,125.48,0.05278475]
[1742287233872,13.58333008,125.49,125.48,0.05278475]
[1742287235471,26.75531802,125.49,125.48,0.05278475]
[1742287236172,21.14128794,125.49,125.48,0.05278475]
[1742287236371,26.75333201,125.49,125.48,0.05278475]
[1742287238466,5.61204407,125.49,125.48,0.05278475]
[1742287238869,28.54,125.5,125.48,8.02218475]
[1742287239067,5.61180794,125.49,125.48,8.02218475]
[1742287240074,13.58110794,125.49,125.48,0.05278475]
[1742287240675,5.61180794,125.49,125.48,0.05278475]
[1742287241271,5.61180794,125.49,125.48,21.19477269]
[1742287244973,0.05641463,125.51,125.48,21.19477269]
[1742287244974,0.05641463,125.51,125.5,7.9687]
[1742287246278,5.67441351,125.51,125.5,7.9687]
[1742287246481,13.64251351,125.51,125.49,7.969]
[1742287246672,5.61799888,125.5,125.49,7.969]
[1742287249277,13.58669888,125.5,125.48,8.02238475]
[1742287249583,5.61799888,125.49,125.48,21.19437269]
[1742287250278,5.61799888,125.49,125.48,0.05278475]
[1742287250481,41.64840257,125.51,125.48,0.05278475]
[1742287250880,5.63116491,125.5,125.48,0.05278475]
[1742287251076,5.63116491,125.49,125.48,0.05278475]
[1742287251277,13.60046491,125.49,125.48,0.05278475]
[1742287251880,55.19245285,125.49,125.48,0.05278475]
[1742287252475,55.19245285,125.49,125.48,0.00288317]
[1742287252881,7.9717,125.46,125.44,262.92]
[1742287253077,5.63116491,125.45,125.44,262.92]
[1742287253878,13.60306491,125.45,125.44,262.92]
[1742287254278,5.63116491,125.45,125.44,262.92]
[1742287256882,13.60306491,125.45,125.44,262.92]
[1742287257483,13.60468674,125.45,125.44,262.92]
[1742287262582,5.63278674,125.45,125.44,262.92]
[1742287263484,13.60468674,125.45,125.44,262.92]
[1742287266788,42.02468674,125.45,125.43,0.06059126]
[1742287266988,5.63278674,125.44,125.43,8.03339126]
[1742287267487,5.63278674,125.44,125.43,0.06059126]
[1742287268689,5.63278674,125.44,125.43,8.03379126]
[1742287270186,5.63278674,125.44,125.43,21.2057792]
[1742287271888,0.05060418,125.46,125.45,7.9719]
[1742287272093,0.05060418,125.46,125.45,21.14388794]
[1742287273397,0.05060418,125.46,125.45,13.17198794]
[1742287273991,0.05060418,125.46,125.45,21.14388794]
[1742287277997,0.05060418,125.46,125.44,263.08]
[1742287278791,7.9719,125.45,125.44,263.08]
[1742287279605,28.47060418,125.46,125.43,0.06059126]
[1742287279802,41.64259212,125.46,125.43,0.06059126]
[1742287280300,7.9725,125.44,125.43,0.06059126]
[1742287282196,36.3925,125.44,125.43,0.06059126]
[1742287282402,7.9738,125.42,125.41,262.12059126]
[1742287283295,7.9745,125.41,125.39,21.14738794]
[1742287283498,7.9745,125.41,125.4,0.05398381]
[1742287283801,21.14648794,125.41,125.4,0.05398381]
[1742287288200,7.9745,125.41,125.4,0.05398381]
[1742287288797,28.47527907,125.42,125.4,0.05398381]
[1742287289201,28.47527907,125.42,125.4,8.02878381]
[1742287289802,28.47527907,125.42,125.4,21.20077175]
[1742287291405,28.47527907,125.42,125.41,7.9744]
[1742287291699,0.05527907,125.42,125.41,7.9744]
[1742287291900,0.05527907,125.42,125.4,21.20057175]
[1742287292305,0.05527907,125.42,125.4,13.22597175]
[1742287292704,0.05527907,125.42,125.41,7.9744]
[1742287293096,0.05527907,125.42,125.41,21.14638794]
[1742287300402,0.05527907,125.42,125.41,7.9744]
[1742287300730,0.05527907,125.42,125.41,21.14638794]
[1742287302910,0.05527907,125.42,125.4,0.05398381]
[1742287303608,8.02927907,125.42,125.4,8.02868381]
[1742287305706,8.02927907,125.42,125.4,0.05398381]
[1742287306612,8.02927907,125.42,125.4,8.02898381]
[1742287307012,8.02927907,125.42,125.4,0.05398381]
[1742287309218,0.05527907,125.42,125.4,13.22597175]
[1742287309413,0.05527907,125.42,125.4,0.05398381]
[1742287309618,8.02937907,125.42,125.4,8.02898381]
[1742287309912,0.05527907,125.42,125.4,0.05398381]
[1742287310609,7.9744,125.41,125.4,0.05398381]
[1742287312015,8.02947907,125.42,125.4,0.05398381]
[1742287312603,7.9744,125.41,125.4,0.05398381]
[1742287314411,0.05527907,125.42,125.4,0.05398381]
[1742287314612,0.05527907,125.42,125.4,13.22597175]
[1742287315509,0.05527907,125.42,125.41,7.9744]
[1742287316921,41.64726701,125.42,125.4,0.05398381]
[1742287317218,7.9744,125.41,125.4,0.05398381]
[1742287324725,99.62808556,125.41,125.4,0.05398381]
[1742287325722,91.65368556,125.41,125.4,0.05398381]
[1742287326122,91.65368556,125.41,125.4,8.02908381]
[1742287326523,124.77447826,125.42,125.4,13.22597175]
[1742287326825,124.77447826,125.42,125.41,21.14638794]
[1742287327620,44.44556716,125.42,125.41,21.14638794]
[1742287327824,124.71919919,125.43,125.42,7.9738]
[1742287328024,124.71919919,125.43,125.42,21.14578794]
[1742287330819,0.05537311,125.44,125.43,7.9732]
[1742287331023,0.05537311,125.44,125.43,21.14518794]
[1742287334631,0.05537311,125.44,125.42,21.14548794]
[1742287334931,0.05537311,125.44,125.4,0.05398381]
[1742287334932,13.22736105,125.44,125.4,0.05398381]
[1742287335354,7.9735,125.43,125.41,7.9741]
[1742287336027,41.59198794,125.43,125.4,0.05398381]
[1742287336726,13.17198794,125.42,125.4,0.05398381]
[1742287337126,21.14618794,125.42,125.4,0.05398381]
[1742287337535,7.9742,125.42,125.4,0.05398381]
[1742287338836,41.59198794,125.43,125.4,0.05398381]
[1742287339334,7.9744,125.41,125.4,0.05398381]
[1742287340669,36.3944,125.41,125.4,0.05398381]
[1742287342529,28.42,125.41,125.4,0.05398381]
[1742287343139,28.42,125.41,125.4,8.02908381]
[1742287344139,28.42,125.41,125.4,0.05398381]
[1742287347332,28.42,125.41,125.4,8.02908381]
[1742287348439,0.05537311,125.44,125.4,13.22597175]
[1742287348638,0.05537311,125.44,125.41,13.17198794]
[1742287349638,8.02817311,125.44,125.42,7.9735]
[1742287350445,0.05537311,125.44,125.41,13.17198794]
[1742287352043,0.05537311,125.44,125.43,7.9732]
[1742287352647,0.05537311,125.44,125.41,13.17198794]
[1742287352844,13.22736105,125.44,125.4,0.05398381]
[1742287353238,7.9736,125.43,125.4,8.02868381]
[1742287353841,7.9736,125.43,125.41,7.9744]
[1742287354350,7.9743,125.42,125.4,0.05398381]
[1742287354539,13.22736105,125.44,125.4,0.05398381]
[1742287354540,28.42,125.43,125.4,0.05398381]
[1742287354937,36.3936,125.43,125.41,7.9742]
[1742287358748,7.9736,125.43,125.41,7.9742]
[1742287358938,7.9736,125.43,125.42,7.9738]
[1742287359247,0.05537311,125.44,125.41,13.17198794]
[1742287360476,0.05537311,125.44,125.43,13.17198794]
[1742287360649,0.05537311,125.44,125.43,21.14518794]
[1742287362652,0.05537311,125.44,125.43,7.9732]
[1742287364452,0.05537311,125.44,125.43,21.14518794]
[1742287378462,0.05537311,125.44,125.43,7.9732]
[1742287379660,7.9732,125.43,125.41,276.25198794]
[1742287380168,7.9732,125.43,125.41,271.054]
[1742287381167,7.9738,125.42,125.41,263.08]
[1742287385071,7.9735,125.43,125.41,263.08]
[1742287385777,7.9738,125.42,125.41,263.08]
[1742287387876,28.45537311,125.44,125.41,263.08]
[1742287388373,0.05537311,125.44,125.42,7.9734]
[1742287388672,0.05537311,125.44,125.41,276.25198794]
[1742287388870,8.02797311,125.44,125.42,7.9734]
[1742287389070,8.02797311,125.44,125.41,276.25198794]
[1742287389270,0.05537311,125.44,125.41,276.25198794]
[1742287389470,7.9732,125.43,125.41,284.22608794]
[1742287389772,0.05537311,125.44,125.41,284.22608794]
[1742287390473,7.9733,125.43,125.41,284.22608794]
[1742287391073,7.9733,125.43,125.41,276.25198794]
[1742287391577,7.9733,125.43,125.41,284.22618794]
[1742287392576,7.9738,125.42,125.41,276.25198794]
[1742287392771,7.9738,125.42,125.41,263.08]
[1742287395378,7.9738,125.42,125.41,263.08]
[1742287396278,7.9738,125.42,125.4,0.05398381]
[1742287396676,41.59198794,125.43,125.4,0.05398381]
[1742287396878,13.17198794,125.42,125.4,0.05398381]
[1742287397074,0.05537311,125.44,125.41,13.17198794]
[1742287397279,0.05537311,125.44,125.43,21.14518794]
[1742287397578,0.05537311,125.44,125.43,284.28518794]
[1742287415998,7.311e-05,125.44,125.43,284.28518794]
[1742287416198,4.3308,125.49,125.48,7.97]
[1742287416399,4.3308,125.49,125.46,13.17198794]
[1742287417099,12.3001,125.49,125.47,7.97]
[1742287417296,12.35472188,125.49,125.47,7.97]
[1742287417499,4.38542188,125.49,125.46,13.23029973]
[1742287417703,0.05462188,125.49,125.47,7.9706]
[1742287418302,8.02432188,125.49,125.47,7.9706]
[1742287419509,7.97,125.48,125.46,21.20119973]
[1742287420006,0.05462188,125.49,125.47,13.17198794]
[1742287420608,0.05462188,125.49,125.48,7.97]
[1742287423507,11.08143304,125.52,125.47,41.57198794]
[1742287423811,11.08143304,125.52,125.51,13.17198794]
[1742287424011,11.08143304,125.52,125.51,312.58008794]
[1742287425917,0.05343112,125.53,125.52,7.9674]
[1742287426211,0.05343112,125.53,125.52,21.13938794]
[1742287430717,0.05343112,125.53,125.52,13.17198794]
[1742287431520,0.05343112,125.53,125.52,21.13938794]
[1742287439025,0.05343112,125.53,125.52,13.17198794]
[1742287439223,13.22541906,125.53,125.51,263.04]
[1742287439620,19.68961906,125.53,125.51,263.04]
[1742287439819,7.9674,125.52,125.51,263.04]
[1742287450033,6.51763112,125.53,125.51,263.04]
[1742287450437,0.05343112,125.53,125.51,263.04]
[1742287450838,0.05343112,125.53,125.52,7.9674]
[1742287452240,0.05343112,125.53,125.51,271.0078]
[1742287452637,0.05343112,125.53,125.51,263.04]
[1742287452839,0.05343112,125.53,125.52,7.9674]
[1742287455345,0.05343112,125.53,125.52,21.13938794]
[1742287455540,0.05343112,125.53,125.52,49.51938794]
[1742287455743,8.02073112,125.53,125.51,263.04]
[1742287455944,0.05343112,125.53,125.51,263.04]
[1742287456346,7.9674,125.52,125.51,263.04]
[1742287467156,7.9681,125.51,125.5,0.05079593]
[1742287474366,26.5372305,125.53,125.5,13.22278387]
[1742287474662,11.0784572,125.53,125.5,13.22278387]
[1742287474860,11.0784572,125.53,125.51,7.9677]
[1742287475461,11.0784572,125.53,125.52,7.9674]
[1742287476260,19.0452572,125.53,125.51,7.9678]
[1742287476453,52.12033544,125.53,125.51,7.9678]
[1742287477161,52.12033544,125.53,125.51,21.13978794]
[1742287477361,44.15353544,125.53,125.52,7.9674]
[1742287478263,52.12073544,125.53,125.51,21.13968794]
[1742287478762,8.02063112,125.53,125.51,21.13968794]
[1742287479458,8.02063112,125.53,125.52,7.9674]
[1742287479459,0.05343112,125.53,125.52,7.9674]
[1742287479763,0.05343112,125.53,125.51,13.17198794]
[1742287479968,0.05343112,125.53,125.51,7.9675]
[1742287480263,0.05343112,125.53,125.5,276.18278387]
[1742287480565,8.02023112,125.53,125.51,7.9681]